fUST/lending_fUST_20250416
["ID","MTS","AMOUNT","RATE_DAILY","PERIOD"]
[358153405,1744788639999,-500.0,0.00041095,14]
[358153406,1744788640010,-500.0,0.00041095,14]
[358153408,1744788640020,-500.0,0.00041095,14]
[358153409,1744788640029,-500.0,0.00041095,14]
[358153411,1744788640039,-500.0,0.00041095,14]
[358153413,1744788640049,-500.0,0.00041095,14]
[358153414,1744788640059,-829.21,0.00041095,14]
[358153415,1744788640069,-780.21,0.00041095,14]
[358153416,1744788640078,-500.0,0.00041095,14]
[358153417,1744788640088,-592.88,0.00041095,14]
[358153418,1744788640099,-500.0,0.00041095,14]
[358153419,1744788640109,-500.0,0.00041095,14]
[358153420,1744788640119,-500.0,0.00041095,14]
[358153421,1744788640129,-500.0,0.00041095,14]
[358153422,1744788640139,-2719.39,0.00041095,14]
[358153423,1744788640148,-500.0,0.00041095,14]
[358153424,1744788640158,-500.0,0.00041095,14]
[358153425,1744788640167,-745.65,0.00041095,14]
[358153426,1744788640177,-500.0,0.00041095,14]
[358153427,1744788640186,-622.29,0.00041095,14]
[358153428,1744788640195,-500.0,0.00041095,14]
[358153429,1744788640206,-1395.33,0.00041095,14]
[358153430,1744788640216,-500.0,0.00041095,14]
[358153432,1744788640226,-500.0,0.00041095,14]
[358153434,1744788640235,-500.0,0.00041095,14]
[358153435,1744788640244,-500.0,0.00041095,14]
[358153436,1744788640254,-500.64767064,0.00041095,14]
[358153437,1744788640263,-500.0,0.00041095,14]
[358153438,1744788640273,-884.67,0.00041095,14]
[358153439,1744788640282,-500.0,0.00041095,14]
[358153440,1744788640292,-500.0,0.00041095,14]
[358153441,1744788640301,-300.0,0.00041095,30]
[358153442,1744788640311,-649.74,0.00041095,14]
[358153443,1744788640320,-500.0,0.00041095,14]
[358153444,1744788640330,-500.0,0.00041095,14]
[358153446,1744788640340,-610.38,0.00041095,14]
[358153447,1744788640350,-500.0,0.00041095,14]
[358153448,1744788640359,-334.99106123,0.00041095,14]
[358153449,1744788640369,-579.28422361,0.00041095,14]
[358153450,1744788640379,-500.0,0.00041095,14]
[358153451,1744788640388,-500.0,0.00041095,14]
[358153452,1744788640398,-501.05684293,0.00041095,14]
[358153453,1744788640408,-500.0,0.00041095,14]
[358153454,1744788640418,-904.88,0.00041095,14]
[358153455,1744788640428,-501.47924145,0.00041095,14]
[358153456,1744788640438,-500.0,0.00041095,7]
[358153457,1744788640448,-500.0,0.00041095,14]
[358153458,1744788640458,-500.0,0.00041095,7]
[358153460,1744788640474,-1039.96,0.00041095,14]
[358153461,1744788640491,-593.66,0.00041095,14]
[358153463,1744788640501,-500.0,0.00041095,14]
[358153464,1744788640511,-500.0,0.00041095,14]
[358153465,1744788640521,-500.0,0.00041095,14]
[358153466,1744788640534,-500.0,0.00041095,14]
[358153467,1744788640544,-2537.56,0.00041095,14]
[358153468,1744788640554,-1547.79,0.00041095,14]
[358153469,1744788640565,-513.22,0.00041095,14]
[358153470,1744788640575,-500.0,0.00041095,14]
[358153471,1744788640584,-500.0,0.00041095,14]
[358153472,1744788640594,-614.73341292,0.00041095,14]
[358153473,1744788640603,-526.29,0.00041095,14]
[358153474,1744788640615,-500.0,0.00041095,14]
[358153475,1744788640626,-500.0,0.00041095,14]
[358153476,1744788640636,-528.27,0.00041095,14]
[358153477,1744788640646,-2014.47,0.00041095,14]
[358153478,1744788640655,-503.0914485,0.00041095,14]
[358153479,1744788640665,-527.47,0.00041095,14]
[358153480,1744788640675,-500.0,0.00041095,14]
[358153481,1744788640684,-1084.87,0.00041095,14]
[358153482,1744788640694,-500.0,0.00041095,14]
[358153483,1744788640704,-1392.84,0.00041095,14]
[358153484,1744788640715,-500.0,0.00041095,14]
[358153485,1744788640724,-500.0,0.00041095,14]
[358153486,1744788640734,-500.0,0.00041095,14]
[358153487,1744788640744,-500.4353346,0.00041095,14]
[358153488,1744788640754,-500.0,0.00041095,14]
[358153489,1744788640764,-500.0,0.00041095,14]
[358153490,1744788640773,-221.50243913,0.00041095,120]
[358153491,1744788640783,-151.0,0.00041095,14]
[358153492,1744788640793,-151.0,0.00041095,14]
[358153493,1744788640803,-500.0,0.00041095,14]
[358153494,1744788640813,-674.89,0.00041095,14]
[358153495,1744788640823,-151.0,0.00041095,14]
[358153496,1744788640833,-151.0,0.00041095,14]
[358153497,1744788640843,-151.0,0.00041095,14]
[358153498,1744788640852,-151.0,0.00041095,14]
[358153499,1744788640861,-151.0,0.00041095,14]
[358153500,1744788640871,-151.0,0.00041095,14]
[358153501,1744788640881,-152.984776,0.00041095,14]
[358153502,1744788640891,-500.0,0.00041095,14]
[358153503,1744788640901,-1965.45,0.00041095,14]
[358153504,1744788640911,-1965.45,0.00041095,14]
[358153505,1744788640921,-1965.45,0.00041095,14]
[358153506,1744788640931,-1965.45,0.00041095,14]
[358153507,1744788640945,-1965.45,0.00041095,14]
[358153508,1744788640954,-1965.45,0.00041095,14]
[358153509,1744788640964,-500.0,0.00041095,14]
[358153510,1744788640974,-1965.45,0.00041095,14]
[358153511,1744788640986,-1965.45,0.00041095,14]
[358153512,1744788640997,-1965.45,0.00041095,14]
[358153513,1744788641008,-1965.45,0.00041095,14]
[358153514,1744788641019,-1965.45,0.00041095,14]
[358153515,1744788641029,-500.0,0.00041095,14]
[358153516,1744788641038,-1965.45,0.00041095,14]
[358153517,1744788641048,-1965.45,0.00041095,14]
[358153518,1744788641058,-7857.04,0.00041095,14]
[358153519,1744788641068,-1965.45,0.00041095,14]
[358153520,1744788641078,-1965.45,0.00041095,14]
[358153521,1744788641087,-1387.09,0.00041095,14]
[358153522,1744788641097,-1965.45,0.00041095,14]
[358153523,1744788641107,-1965.45,0.00041095,14]
[358153524,1744788641117,-706.88,0.00041095,14]
[358153525,1744788641126,-1965.45,0.00041095,14]
[358153526,1744788641136,-1965.45,0.00041095,14]
[358153527,1744788641146,-1965.45,0.00041095,14]
[358153528,1744788641156,-1965.45,0.00041095,14]
[358153529,1744788641165,-1965.45,0.00041095,14]
[358153530,1744788641175,-1965.45,0.00041095,14]
[358153531,1744788641185,-1965.56332869,0.00041095,14]
[358153532,1744788641195,-500.0,0.00041095,14]
[358153533,1744788641205,-500.0,0.00041095,14]
[358153534,1744788641215,-500.0,0.00041095,14]
[358153535,1744788641225,-500.0,0.00041095,14]
[358153536,1744788641235,-500.0,0.00041095,14]
[358153537,1744788641244,-500.0,0.00041095,14]
[358153538,1744788641253,-413.38641251,0.00041095,14]
[358153539,1744788641263,-6310.72,0.00041095,14]
[358153540,1744788641273,-703.46,0.00041095,14]
[358153541,1744788641283,-302.15417428,0.00041095,14]
[358153542,1744788641293,-500.0,0.00041095,14]
[358153543,1744788641302,-936.09,0.00041095,14]
[358153544,1744788641312,-500.0,0.00041095,14]
[358153545,1744788641323,-500.0,0.00041095,14]
[358153546,1744788641332,-2255.45,0.00041095,14]
[358153547,1744788641343,-500.0,0.00041095,14]
[358153548,1744788641352,-500.0,0.00041095,14]
[358153549,1744788641363,-1641.13,0.00041095,14]
[358153550,1744788641373,-500.0,0.00041095,14]
[358153551,1744788641382,-500.0,0.00041095,14]
[358153552,1744788641392,-500.0,0.00041095,14]
[358153553,1744788641402,-500.0,0.00041095,14]
[358153554,1744788641412,-576.56,0.00041095,14]
[358153555,1744788641423,-625.46,0.00041095,14]
[358153556,1744788641432,-500.0,0.00041095,14]
[358153557,1744788641442,-500.0,0.00041095,14]
[358153558,1744788641452,-505.73602518,0.00041095,14]
[358153559,1744788641461,-506.00392548,0.00041095,14]
[358153560,1744788641471,-230.41447021,0.00041095,14]
[358153561,1744788641481,-500.0,0.00041095,14]
[358153562,1744788641491,-500.0,0.00041095,14]
[358153563,1744788641500,-500.0,0.00041095,14]
[358153564,1744788641510,-503.29431115,0.00041095,14]
[358153565,1744788641520,-510.57382467,0.00041095,14]
[358153566,1744788641530,-500.0,0.00041095,14]
[358153567,1744788641540,-842.95,0.00041095,14]
[358153568,1744788641550,-946.9,0.00041095,14]
[358153569,1744788641560,-500.0,0.00041095,14]
[358153570,1744788641571,-1000.0,0.00041095,14]
[358153571,1744788641581,-511.23317119,0.00041095,14]
[358153572,1744788641590,-500.0,0.00041095,14]
[358153573,1744788641600,-1646.8,0.00041095,14]
[358153574,1744788641610,-500.0,0.00041095,14]
[358153575,1744788641619,-500.0,0.00041095,14]
[358153576,1744788641629,-500.0,0.00041095,14]
[358153577,1744788641639,-500.0,0.00041095,14]
[358153578,1744788641648,-1854.33,0.00041095,14]
[358153579,1744788641658,-500.0,0.00041095,14]
[358153580,1744788641668,-500.0,0.00041095,14]
[358153581,1744788641677,-500.0,0.00041095,14]
[358153582,1744788641687,-563.56331901,0.00041095,14]
[358153583,1744788641696,-500.0,0.00041095,14]
[358153584,1744788641705,-500.0,0.00041095,14]
[358153585,1744788641715,-805.54,0.00041095,14]
[358153586,1744788641725,-855.44,0.00041095,14]
[358153587,1744788641735,-1331.14,0.00041095,14]
[358153588,1744788641744,-500.0,0.00041095,14]
[358153589,1744788641754,-500.0,0.00041095,14]
[358153590,1744788641764,-559.32,0.00041095,14]
[358153591,1744788641773,-678.8,0.00041095,14]
[358153592,1744788641783,-500.0,0.00041095,14]
[358153593,1744788641792,-500.0,0.00041095,14]
[358153594,1744788641802,-500.0,0.00041095,14]
[358153595,1744788641813,-500.0,0.00041095,14]
[358153596,1744788641822,-500.0,0.00041095,14]
[358153597,1744788641832,-500.0,0.00041095,14]
[358153598,1744788641842,-3039.79,0.00041095,14]
[358153599,1744788641851,-935.37,0.00041095,14]
[358153600,1744788641861,-500.0,0.00041095,14]
[358153601,1744788641870,-333.57836871,0.00041095,14]
[358153602,1744788641880,-500.0,0.00041095,14]
[358153603,1744788641890,-500.0,0.00041095,14]
[358153604,1744788641899,-597.29,0.00041095,14]
[358153605,1744788641908,-500.0,0.00041095,14]
[358153606,1744788641918,-500.0,0.00041095,14]
[358153607,1744788641927,-500.0,0.00041095,14]
[358153608,1744788641940,-500.0,0.00041095,14]
[358153609,1744788641949,-500.0,0.00041095,14]
[358153610,1744788641959,-508.71,0.00041095,14]
[358153611,1744788641969,-500.0,0.00041095,14]
[358153612,1744788641979,-500.0,0.00041095,14]
[358153613,1744788641988,-500.0,0.00041095,14]
[358153614,1744788641998,-500.0,0.00041095,14]
[358153615,1744788642007,-500.0,0.00041095,14]
[358153616,1744788642018,-500.0,0.00041095,14]
[358153617,1744788642028,-500.0,0.00041095,14]
[358153618,1744788642038,-500.0,0.00041095,14]
[358153619,1744788642048,-500.0,0.00041095,14]
[358153620,1744788642060,-500.0,0.00041095,14]
[358153621,1744788642071,-500.0,0.00041095,14]
[358153622,1744788642081,-1042.06,0.00041095,14]
[358153623,1744788642090,-500.0,0.00041095,14]
[358153624,1744788642100,-500.0,0.00041095,14]
[358153625,1744788642111,-920.86,0.00041095,14]
[358153626,1744788642121,-1549.59,0.00041095,14]
[358153627,1744788642131,-500.0,0.00041095,14]
[358153628,1744788642141,-500.0,0.00041095,14]
[358153629,1744788642151,-500.0,0.00041095,14]
[358153630,1744788642161,-516.1982687,0.00041095,14]
[358153631,1744788642170,-500.0,0.00041095,14]
[358153632,1744788642180,-500.0,0.00041095,14]
[358153633,1744788642190,-500.0,0.00041095,14]
[358153634,1744788642199,-566.86,0.00041095,14]
[358153635,1744788642210,-500.0,0.00041095,14]
[358153636,1744788642221,-1660.86,0.00041095,14]
[358153637,1744788642230,-500.0,0.00041095,14]
[358153638,1744788642240,-500.0,0.00041095,14]
[358153639,1744788642250,-500.0,0.00041095,14]
[358153640,1744788642260,-500.0,0.00041095,14]
[358153641,1744788642270,-500.0,0.00041095,14]
[358153642,1744788642279,-500.0,0.00041095,120]
[358153643,1744788642290,-947.15,0.00041095,14]
[358153644,1744788642300,-1583.41,0.00041095,14]
[358153645,1744788642310,-500.0,0.00041095,14]
[358153646,1744788642320,-500.0,0.00041095,14]
[358153647,1744788642330,-500.0,0.00041095,14]
[358153648,1744788642340,-500.0,0.00041095,14]
[358153649,1744788642350,-500.0,0.00041095,14]
[358153650,1744788642360,-500.0,0.00041095,14]
[358153651,1744788642369,-500.0,0.00041095,14]
[358153652,1744788642379,-1151.27,0.00041095,14]
[358153653,1744788642389,-500.0,0.00041095,14]
[358153654,1744788642398,-500.0,0.00041095,14]
[358153655,1744788642408,-500.0,0.00041095,14]
[358153656,1744788642417,-240.49053203,0.00041095,14]
[358153657,1744788642427,-438.89015023,0.00041095,14]
[358153658,1744788642437,-500.0,0.00041095,14]
[358153659,1744788642446,-1506.8,0.00041095,14]
[358153660,1744788642456,-500.0,0.00041095,14]
[358153661,1744788642466,-500.0,0.00041095,14]
[358153662,1744788642475,-500.0,0.00041095,14]
[358153663,1744788642485,-500.0,0.00041095,14]
[358153664,1744788642495,-554.28,0.00041095,14]
[358153665,1744788642504,-500.0,0.00041095,14]
[358153666,1744788642514,-550.61,0.00041095,14]
[358153667,1744788642524,-500.0,0.00041095,14]
[358153668,1744788642534,-500.0,0.00041095,14]
[358153669,1744788642544,-1081.64,0.00041095,14]
[358153670,1744788642554,-500.0,0.00041095,14]
[358153671,1744788642564,-1388.41,0.00041095,14]
[358153672,1744788642574,-500.0,0.00041095,14]
[358153673,1744788642584,-1039.7,0.00041095,14]
[358153674,1744788642594,-1322.93,0.00041095,14]
[358153675,1744788642603,-500.0,0.00041095,14]
[358153676,1744788642613,-1632.72,0.00041095,14]
[358153678,1744788642623,-500.0,0.00041095,14]
[358153680,1744788642633,-500.0,0.00041095,14]
[358153681,1744788642643,-500.0,0.00041095,14]
[358153682,1744788642653,-500.0,0.00041095,14]
[358153683,1744788642663,-500.0,0.00041095,14]
[358153684,1744788642673,-429.19975129,0.00041095,14]
[358153685,1744788642683,-12644.19,0.00041095,14]
[358153686,1744788642694,-173.1928851,0.00041095,14]
[358153687,1744788642704,-497.77966695,0.00041095,14]
[358153688,1744788642714,-1349.07,0.00041095,14]
[358153689,1744788642724,-251.19158312,0.00041095,14]
[358153690,1744788642735,-500.0,0.00041095,14]
[358153691,1744788642746,-946.31,0.00041095,14]
[358153693,1744788642756,-7986.11,0.00041095,2]
[358153695,1744788642766,-1384.35,0.00041095,14]
[358153698,1744788642776,-887.46,0.00041095,14]
[358153700,1744788642786,-585.15,0.00041095,14]
[358153705,1744788642987,-500.0,0.00041095,2]
[358153706,1744788642997,-500.0,0.00041095,14]
[358153707,1744788643007,-918.71,0.00041095,14]
[358153708,1744788643018,-500.0,0.00041095,14]
[358153709,1744788643029,-500.0,0.00041095,14]
[358153710,1744788643038,-500.0,0.00041095,14]
[358153711,1744788643048,-1150.8,0.00041095,14]
[358153712,1744788643058,-500.0,0.00041095,2]
[358153713,1744788643069,-500.0,0.00041095,14]
[358153714,1744788643078,-2690.18,0.00041095,14]
[358153715,1744788643089,-589.6,0.00041095,14]
[358153716,1744788643099,-500.0,0.00041095,14]
[358153717,1744788643109,-887.18,0.00041095,14]
[358153718,1744788643120,-708.36,0.00041095,14]
[358153719,1744788643130,-500.0,0.00041095,14]
[358153720,1744788643140,-500.0,0.00041095,14]
[358153721,1744788643150,-500.0,0.00041095,14]
[358153722,1744788643159,-500.0,0.00041095,14]
[358153723,1744788643169,-1039.48,0.00041095,14]
[358153724,1744788643179,-500.0,0.00041095,14]
[358153725,1744788643189,-803.71,0.00041095,14]
[358153726,1744788643199,-685.27,0.00041095,14]
[358153727,1744788643211,-500.0,0.00041095,14]
[358153728,1744788643221,-500.0,0.00041095,14]
[358153729,1744788643231,-500.0,0.00041095,14]
[358153730,1744788643241,-500.0,0.00041095,14]
[358153731,1744788643250,-500.0,0.00041095,14]
[358153732,1744788643260,-500.0,0.00041095,14]
[358153733,1744788643270,-500.0,0.00041095,14]
[358153734,1744788643280,-500.0,0.00041095,14]
[358153735,1744788643290,-500.0,0.00041095,14]
[358153736,1744788643300,-500.0,0.00041095,14]
[358153737,1744788643310,-500.0,0.00041095,14]
[358153738,1744788643320,-500.0,0.00041095,14]
[358153739,1744788643330,-500.0,0.00041095,14]
[358153740,1744788643340,-500.0,0.00041095,14]
[358153741,1744788643350,-641.25,0.00041095,14]
[358153742,1744788643360,-500.0,0.00041095,14]
[358153743,1744788643370,-500.0,0.00041095,14]
[358153744,1744788643380,-500.0,0.00041095,14]
[358153745,1744788643390,-500.0,0.00041095,14]
[358153747,1744788643402,-500.0,0.00041095,14]
[358153748,1744788643413,-500.0,0.00041095,14]
[358153749,1744788643423,-500.0,0.00041095,14]
[358153750,1744788643432,-500.0,0.00041095,14]
[358153751,1744788643442,-500.0,0.00041095,14]
[358153752,1744788643452,-500.0,0.00041095,14]
[358153753,1744788643462,-500.0,0.00041095,14]
[358153754,1744788643472,-500.0,0.00041095,14]
[358153755,1744788643482,-500.0,0.00041095,14]
[358153756,1744788643492,-500.0,0.00041095,14]
[358153757,1744788643502,-422.2350452,0.00041095,14]
[358153758,1744788643512,-1921.43,0.00041095,14]
[358153759,1744788643522,-500.0,0.00041095,14]
[358153760,1744788643532,-998.69,0.00041095,14]
[358153761,1744788643542,-500.0,0.00041095,14]
[358153762,1744788643552,-500.0,0.00041095,14]
[358153763,1744788643562,-1014.99,0.00041095,14]
[358153764,1744788643572,-520.51,0.00041095,14]
[358153765,1744788643583,-599.75,0.00041095,14]
[358153766,1744788643592,-500.0,0.00041095,14]
[358153767,1744788643602,-602.3,0.00041095,14]
[358153768,1744788643612,-500.0,0.00041095,14]
[358153769,1744788643622,-834.42,0.00041095,14]
[358153770,1744788643631,-1575.14,0.00041095,14]
[358153771,1744788643641,-925.32,0.00041095,14]
[358153772,1744788643651,-500.0,0.00041095,14]
[358153773,1744788643661,-1239.08,0.00041095,14]
[358153774,1744788643670,-440.72697855,0.00041095,14]
[358153775,1744788643680,-629.41,0.00041095,14]
[358153776,1744788643691,-862.06,0.00041095,14]
[358153777,1744788643700,-523.26984849,0.00041095,14]
[358153778,1744788643710,-955.34,0.00041095,14]
[358153779,1744788643719,-500.0,0.00041095,14]
[358153780,1744788643729,-500.0,0.00041095,14]
[358153781,1744788643739,-500.0,0.00041095,14]
[358153782,1744788643750,-500.0,0.00041095,14]
[358153783,1744788643760,-500.0,0.00041095,14]
[358153784,1744788643770,-500.0,0.00041095,14]
[358153785,1744788643779,-500.0,0.00041095,14]
[358153786,1744788643789,-550.35,0.00041095,14]
[358153787,1744788643799,-595.56,0.00041095,14]
[358153788,1744788643809,-595.56,0.00041095,14]
[358153789,1744788643819,-595.56,0.00041095,14]
[358153790,1744788643830,-500.0,0.00041095,14]
[358153791,1744788643840,-595.56,0.00041095,14]
[358153792,1744788643850,-500.0,0.00041095,14]
[358153793,1744788643860,-595.56,0.00041095,14]
[358153794,1744788643870,-595.56,0.00041095,14]
[358153795,1744788643880,-595.56,0.00041095,14]
[358153796,1744788643891,-500.0,0.00041095,14]
[358153797,1744788643901,-595.56,0.00041095,14]
[358153798,1744788643911,-595.56,0.00041095,14]
[358153799,1744788643922,-500.0,0.00041095,14]
[358153800,1744788643931,-595.56,0.00041095,14]
[358153801,1744788643946,-500.0,0.00041095,14]
[358153802,1744788643956,-595.56,0.00041095,14]
[358153803,1744788643966,-595.56,0.00041095,14]
[358153804,1744788643978,-595.56,0.00041095,14]
[358153805,1744788643989,-595.56,0.00041095,14]
[358153806,1744788643999,-595.56,0.00041095,14]
[358153807,1744788644008,-1000.0,0.00041095,14]
[358153808,1744788644020,-595.56,0.00041095,14]
[358153809,1744788644030,-595.56,0.00041095,14]
[358153810,1744788644040,-595.56,0.00041095,14]
[358153811,1744788644050,-595.56,0.00041095,14]
[358153812,1744788644061,-595.56,0.00041095,14]
[358153813,1744788644071,-595.56,0.00041095,14]
[358153814,1744788644081,-595.56,0.00041095,14]
[358153815,1744788644091,-595.56,0.00041095,14]
[358153816,1744788644101,-500.0,0.00041095,14]
[358153817,1744788644111,-595.63,0.00041095,14]
[358153818,1744788644121,-500.0,0.00041095,14]
[358153819,1744788644130,-500.0,0.00041095,14]
[358153820,1744788644140,-500.0,0.00041095,14]
[358153821,1744788644150,-500.0,0.00041095,14]
[358153822,1744788644160,-1452.43,0.00041095,14]
[358153823,1744788644170,-500.0,0.00041095,14]
[358153824,1744788644180,-1744.64,0.00041095,14]
[358153825,1744788644190,-500.0,0.00041095,14]
[358153826,1744788644201,-580.37622468,0.00041095,14]
[358153827,1744788644211,-1094.33,0.00041095,14]
[358153828,1744788644222,-637.89,0.00041095,14]
[358153829,1744788644231,-628.03,0.00041095,14]
[358153830,1744788644241,-825.91,0.00041095,14]
[358153831,1744788644252,-500.0,0.00041095,14]
[358153832,1744788644262,-500.0,0.00041095,14]
[358153833,1744788644272,-500.0,0.00041095,14]
[358153834,1744788644283,-500.0,0.00041095,14]
[358153835,1744788644293,-1498.67,0.00041095,14]
[358153836,1744788644303,-802.33,0.00041095,14]
[358153837,1744788644315,-500.0,0.00041095,14]
[358153838,1744788644326,-500.0,0.00041095,14]
[358153839,1744788644336,-595.33,0.00041095,14]
[358153840,1744788644345,-520.78152809,0.00041095,14]
[358153841,1744788644355,-500.0,0.00041095,14]
[358153842,1744788644365,-500.0,0.00041095,14]
[358153843,1744788644376,-500.0,0.00041095,14]
[358153844,1744788644386,-1039.62,0.00041095,14]
[358153845,1744788644397,-1096.01,0.00041095,14]
[358153846,1744788644407,-500.0,0.00041095,14]
[358153847,1744788644417,-500.0,0.00041095,14]
[358153848,1744788644427,-500.0,0.00041095,14]
[358153849,1744788644437,-1511.15,0.00041095,14]
[358153850,1744788644447,-500.0,0.00041095,14]
[358153851,1744788644457,-1633.16,0.00041095,14]
[358153852,1744788644467,-1266.95,0.00041095,14]
[358153853,1744788644476,-500.0,0.00041095,14]
[358153854,1744788644486,-500.0,0.00041095,14]
[358153855,1744788644496,-500.0,0.00041095,14]
[358153856,1744788644506,-500.0,0.00041095,14]
[358153857,1744788644516,-1429.46,0.00041095,14]
[358153858,1744788644527,-2143.09,0.00041095,14]
[358153859,1744788644537,-2053.8,0.00041095,14]
[358153860,1744788644547,-500.0,0.00041095,14]
[358153861,1744788644557,-500.0,0.00041095,14]
[358153862,1744788644569,-629.33,0.00041095,14]
[358153863,1744788644579,-500.0,0.00041095,14]
[358153864,1744788644588,-500.0,0.00041095,14]
[358153865,1744788644598,-575.63,0.00041095,14]
[358153866,1744788644608,-500.0,0.00041095,14]
[358153867,1744788644618,-551.33988254,0.00041095,14]
[358153868,1744788644628,-974.49,0.00041095,14]
[358153869,1744788644638,-500.0,0.00041095,14]
[358153870,1744788644648,-500.0,0.00041095,14]
[358153871,1744788644658,-500.0,0.00041095,14]
[358153872,1744788644667,-1127.17,0.00041095,14]
[358153873,1744788644677,-500.0,0.00041095,14]
[358153874,1744788644687,-827.15,0.00041095,14]
[358153875,1744788644697,-500.0,0.00041095,14]
[358153876,1744788644706,-824.97,0.00041095,14]
[358153877,1744788644716,-922.02,0.00041095,14]
[358153878,1744788644725,-1048.76,0.00041095,14]
[358153879,1744788644735,-500.0,0.00041095,14]
[358153880,1744788644744,-500.0,0.00041095,14]
[358153881,1744788644754,-598.53,0.00041095,14]
[358153882,1744788644764,-500.0,0.00041095,14]
[358153883,1744788644774,-500.0,0.00041095,14]
[358153884,1744788644783,-500.0,0.00041095,14]
[358153885,1744788644793,-500.0,0.00041095,14]
[358153886,1744788644803,-500.0,0.00041095,14]
[358153887,1744788644813,-500.0,0.00041095,14]
[358153888,1744788644822,-500.0,0.00041095,14]
[358153889,1744788644832,-500.0,0.00041095,14]
[358153890,1744788644841,-593.44,0.00041095,14]
[358153891,1744788644851,-1331.67,0.00041095,14]
[358153892,1744788644861,-500.0,0.00041095,14]
[358153893,1744788644871,-500.0,0.00041095,14]
[358153894,1744788644880,-501.24885545,0.00041095,14]
[358153895,1744788644891,-500.0,0.00041095,14]
[358153896,1744788644900,-500.0,0.00041095,14]
[358153897,1744788644909,-1288.49,0.00041095,14]
[358153898,1744788644918,-500.0,0.00041095,14]
[358153899,1744788644928,-1428.76,0.00041095,14]
[358153900,1744788644939,-500.0,0.00041095,14]
[358153901,1744788644950,-500.0,0.00041095,14]
[358153902,1744788644960,-500.0,0.00041095,14]
[358153903,1744788644969,-500.0,0.00041095,14]
[358153904,1744788644979,-500.0,0.00041095,14]
[358153905,1744788644988,-1000.0,0.00041095,5]
[358153906,1744788644998,-500.0,0.00041095,14]
[358153907,1744788645007,-500.0,0.00041095,14]
[358153908,1744788645017,-500.0,0.00041095,14]
[358153911,1744788645027,-500.0,0.00041095,14]
[358153912,1744788645036,-827.14,0.00041095,14]
[358153914,1744788645046,-500.0,0.00041095,14]
[358153916,1744788645055,-937.96,0.00041095,14]
[358153917,1744788645066,-1112.71,0.00041095,14]
[358153918,1744788645075,-1256.31,0.00041095,14]
[358153919,1744788645084,-500.0,0.00041095,14]
[358153921,1744788645094,-500.0,0.00041095,14]
[358153922,1744788645103,-500.0,0.00041095,14]
[358153923,1744788645113,-500.0,0.00041095,14]
[358153924,1744788645122,-500.0,0.00041095,14]
[358153925,1744788645132,-500.0,0.00041095,14]
[358153926,1744788645142,-500.0,0.00041095,14]
[358153927,1744788645151,-500.0,0.00041095,14]
[358153928,1744788645161,-500.0,0.00041095,14]
[358153929,1744788645170,-500.0,0.00041095,14]